[Event "Late-Titled-Tuesday-Blitz-June-18-2024"]
[Site "Chess.com"]
[Date "2024.06.18"]
[Round "1"]
[White "zenitushka"]
[Black "Abund"]
[Result "1-0"]
[WhiteElo "2395"]
[BlackElo "2685"]
[TimeControl "180+1"]
[EndTime "14:07:56 PDT"]
[Termination "zenitushka won by checkmate"]

1. d4 {[%clk 0:02:44.6]} 1... d5 {[%clk 0:02:57.4]} 2. e4 {[%clk 0:02:44.2]}
2... dxe4 {[%clk 0:02:57.4]} 3. Nc3 {[%clk 0:02:44.1]} 3... Nf6 {[%clk
0:02:57.5]} 4. f3 {[%clk 0:02:40.2]} 4... exf3 {[%clk 0:02:58.4]} 5. Nxf3 {[%clk
0:02:40]} 5... c6 {[%clk 0:02:58.8]} 6. Bc4 {[%clk 0:02:37.8]} 6... Bf5 {[%clk
0:02:58.8]} 7. O-O {[%clk 0:02:28.4]} 7... e6 {[%clk 0:02:57.4]} 8. Ng5 {[%clk
0:02:28.2]} 8... Bg6 {[%clk 0:02:56.6]} 9. Bxe6 {[%clk 0:02:28.2]} 9... fxe6
{[%clk 0:02:37.7]} 10. Nxe6 {[%clk 0:02:29.1]} 10... Qd7 {[%clk 0:02:11.4]} 11.
Bg5 {[%clk 0:02:29]} 11... Qxe6 {[%clk 0:01:59.4]} 12. Bxf6 {[%clk 0:02:28.7]}
12... Kd7 {[%clk 0:01:38.3]} 13. d5 {[%clk 0:02:05.2]} 13... cxd5 {[%clk
0:01:23]} 14. Nxd5 {[%clk 0:02:06.1]} 14... Bd6 {[%clk 0:01:10.7]} 15. Bxg7
{[%clk 0:02:06.4]} 15... Rd8 {[%clk 0:01:08.4]} 16. Rf6 {[%clk 0:01:48.7]} 16...
Qe4 {[%clk 0:00:19.5]} 17. Nb6+ {[%clk 0:01:20.1]} 17... Ke8 {[%clk 0:00:15.9]}
18. Rxd6 {[%clk 0:01:11]} 18... Rxd6 {[%clk 0:00:12.4]} 19. Qxd6 {[%clk
0:01:11.9]} 19... axb6 {[%clk 0:00:12.5]} 20. Qf8+ {[%clk 0:00:25.5]} 20... Kd7
{[%clk 0:00:12.5]} 21. Rd1+ {[%clk 0:00:26]} 21... Kc6 {[%clk 0:00:13]} 22. Qd6+
{[%clk 0:00:26.1]} 22... Kb5 {[%clk 0:00:12.5]} 23. Rd5+ {[%clk 0:00:26.1]}
23... Qxd5 {[%clk 0:00:05.7]} 24. Qxd5+ {[%clk 0:00:26.5]} 24... Ka6 {[%clk
0:00:06.2]} 25. Qd8 {[%clk 0:00:11.8]} 25... Ka7 {[%clk 0:00:05.8]} 26. Bd4
{[%clk 0:00:11.8]} 26... Nd7 {[%clk 0:00:03.2]} 27. Qxd7 {[%clk 0:00:11.6]}
27... Re8 {[%clk 0:00:03.8]} 28. Qc7 {[%clk 0:00:10.4]} 28... Re6 {[%clk
0:00:03.6]} 29. a4 {[%clk 0:00:10]} 29... Rc6 {[%clk 0:00:03.9]} 30. Qd8 {[%clk
0:00:07.8]} 30... Be4 {[%clk 0:00:03]} 31. c3 {[%clk 0:00:07.5]} 31... Rg6
{[%clk 0:00:03.1]} 32. g3 {[%clk 0:00:08.1]} 32... h5 {[%clk 0:00:02.6]} 33. a5
{[%clk 0:00:08.5]} 33... h4 {[%clk 0:00:02]} 34. Bxb6+ {[%clk 0:00:09]} 34...
Ka6 {[%clk 0:00:02.3]} 35. Qxh4 {[%clk 0:00:09.9]} 35... Bc6 {[%clk 0:00:02.3]}
36. Qc4+ {[%clk 0:00:10]} 36... Bb5 {[%clk 0:00:02.9]} 37. Qc5 {[%clk
0:00:10.3]} 37... Bc6 {[%clk 0:00:03.2]} 38. b4 {[%clk 0:00:10]} 38... Rg5
{[%clk 0:00:03.4]} 39. Qxg5 {[%clk 0:00:08.6]} 39... Bd5 {[%clk 0:00:03.7]} 40.
h4 {[%clk 0:00:06.6]} 40... Bc4 {[%clk 0:00:03.5]} 41. h5 {[%clk 0:00:06.9]}
41... Bd5 {[%clk 0:00:04.1]} 42. h6 {[%clk 0:00:07.2]} 42... Bc4 {[%clk
0:00:03.3]} 43. Bc7 {[%clk 0:00:07.6]} 43... b5 {[%clk 0:00:02.9]} 44. Qc5
{[%clk 0:00:06.8]} 44... Kb7 {[%clk 0:00:02.7]} 45. Qb6+ {[%clk 0:00:07.3]}
45... Ka8 {[%clk 0:00:03.3]} 46. h7 {[%clk 0:00:07.1]} 46... Bg8 {[%clk
0:00:02.7]} 47. hxg8=R# {[%clk 0:00:06.8]} 1-0

[Event "Late-Titled-Tuesday-Blitz-June-18-2024"]
[Site "Chess.com"]
[Date "2024.06.18"]
[Round "1"]
[White "SRob2003"]
[Black "ALRS-SPS"]
[Result "0-1"]
[WhiteElo "2709"]
[BlackElo "2416"]
[TimeControl "180+1"]
[EndTime "14:07:58 PDT"]
[Termination "ALRS-SPS won by checkmate"]

1. e4 {[%clk 0:02:15.4]} 1... d6 {[%clk 0:02:58.4]} 2. d4 {[%clk 0:02:15.2]}
2... Nf6 {[%clk 0:02:58.2]} 3. Nc3 {[%clk 0:02:15.8]} 3... g6 {[%clk 0:02:58.2]}
4. g3 {[%clk 0:02:16.2]} 4... Bg7 {[%clk 0:02:58.4]} 5. Bg2 {[%clk 0:02:16.5]}
5... O-O {[%clk 0:02:59]} 6. Nge2 {[%clk 0:02:16.5]} 6... e5 {[%clk 0:02:58.5]}
7. h3 {[%clk 0:02:16]} 7... Nc6 {[%clk 0:02:57.7]} 8. Be3 {[%clk 0:02:15.2]}
8... exd4 {[%clk 0:02:56.9]} 9. Nxd4 {[%clk 0:02:16.1]} 9... Bd7 {[%clk
0:02:56.6]} 10. O-O {[%clk 0:02:09.1]} 10... Nxd4 {[%clk 0:02:54.9]} 11. Bxd4
{[%clk 0:01:59.6]} 11... Bc6 {[%clk 0:02:54.5]} 12. Qd3 {[%clk 0:01:57.9]} 12...
Re8 {[%clk 0:02:53.5]} 13. Rfe1 {[%clk 0:01:57.4]} 13... Qd7 {[%clk 0:02:45.8]}
14. Rad1 {[%clk 0:01:56]} 14... Nh5 {[%clk 0:02:41.5]} 15. Bxg7 {[%clk
0:01:19.7]} 15... Nxg7 {[%clk 0:02:41.7]} 16. f4 {[%clk 0:01:18.5]} 16... Rad8
{[%clk 0:02:39.4]} 17. Ne2 {[%clk 0:01:04.6]} 17... Ne6 {[%clk 0:02:31.6]} 18.
b4 {[%clk 0:00:56.6]} 18... a5 {[%clk 0:02:23.6]} 19. a3 {[%clk 0:00:37.3]}
19... axb4 {[%clk 0:02:20.9]} 20. axb4 {[%clk 0:00:38.2]} 20... Ba4 {[%clk
0:02:07.9]} 21. f5 {[%clk 0:00:33]} 21... Nf8 {[%clk 0:01:58.7]} 22. Nd4 {[%clk
0:00:25.7]} 22... c5 {[%clk 0:01:48.3]} 23. Nf3 {[%clk 0:00:25.6]} 23... cxb4
{[%clk 0:01:35.5]} 24. Nd4 {[%clk 0:00:25.6]} 24... Rc8 {[%clk 0:01:27.9]} 25.
Kh2 {[%clk 0:00:20.6]} 25... Qc7 {[%clk 0:01:23.3]} 26. Re2 {[%clk 0:00:08.7]}
26... Qc3 {[%clk 0:01:18.9]} 27. Rb1 {[%clk 0:00:08.5]} 27... Rc7 {[%clk
0:01:03.9]} 28. Qxc3 {[%clk 0:00:08]} 28... bxc3 {[%clk 0:01:03.4]} 29. g4
{[%clk 0:00:06.5]} 29... Nd7 {[%clk 0:00:53.6]} 30. Rb4 {[%clk 0:00:07.1]} 30...
Bc6 {[%clk 0:00:51.2]} 31. Rc4 {[%clk 0:00:06.2]} 31... Ne5 {[%clk 0:00:48.7]}
32. Rxc3 {[%clk 0:00:06.3]} 32... Rcc8 {[%clk 0:00:44.6]} 33. Kg3 {[%clk
0:00:06]} 33... f6 {[%clk 0:00:43.1]} 34. h4 {[%clk 0:00:05.4]} 34... Kg7 {[%clk
0:00:43.4]} 35. g5 {[%clk 0:00:05.5]} 35... h6 {[%clk 0:00:39.7]} 36. Ne6+
{[%clk 0:00:04.2]} 36... Kf7 {[%clk 0:00:29.8]} 37. gxh6 {[%clk 0:00:04.7]}
37... gxf5 {[%clk 0:00:28.4]} 38. exf5 {[%clk 0:00:05.6]} 38... Rg8+ {[%clk
0:00:27.8]} 39. Kh2 {[%clk 0:00:06.2]} 39... Bxg2 {[%clk 0:00:15.2]} 40. Rb3
{[%clk 0:00:03.1]} 40... Bf3 {[%clk 0:00:14.4]} 41. Rd2 {[%clk 0:00:02.1]} 41...
Ng4+ {[%clk 0:00:13.5]} 42. Kh3 {[%clk 0:00:02.5]} 42... Bc6 {[%clk 0:00:08.2]}
43. Rxd6 {[%clk 0:00:02.5]} 43... Ne5 {[%clk 0:00:08.2]} 44. Re3 {[%clk
0:00:01.7]} 44... Rg1 {[%clk 0:00:08.1]} 45. Kh2 {[%clk 0:00:01.9]} 45... Rg2+
{[%clk 0:00:08.1]} 46. Kh3 {[%clk 0:00:02.2]} 46... Rcg8 {[%clk 0:00:08.4]} 47.
Nf4 {[%clk 0:00:02.2]} 47... Rg1 {[%clk 0:00:07.8]} 48. Ng6 {[%clk 0:00:01.9]}
48... Nxg6 {[%clk 0:00:06.6]} 49. fxg6+ {[%clk 0:00:02.8]} 49... Kxg6 {[%clk
0:00:06.5]} 50. h7 {[%clk 0:00:03.7]} 50... Rh1+ {[%clk 0:00:06.8]} 51. Kg3
{[%clk 0:00:03.4]} 51... Kxh7+ {[%clk 0:00:06.8]} 52. Kf4 {[%clk 0:00:04.3]}
52... Rf1+ {[%clk 0:00:06.9]} 53. Rf3 {[%clk 0:00:03.1]} 53... Rxf3# {[%clk
0:00:06.7]} 0-1

[Event "Late-Titled-Tuesday-Blitz-June-18-2024"]
[Site "Chess.com"]
[Date "2024.06.18"]
[Round "1"]
[White "SchmakAttack"]
[Black "Charodej1"]
[Result "1-0"]
[WhiteElo "2824"]
[BlackElo "2463"]
[TimeControl "180+1"]
[EndTime "14:08:00 PDT"]
[Termination "SchmakAttack won by resignation"]

1. e4 {[%clk 0:02:59.1]} 1... c6 {[%clk 0:02:59.8]} 2. Nf3 {[%clk 0:02:57.9]}
2... d5 {[%clk 0:03:00.2]} 3. d3 {[%clk 0:02:58.1]} 3... dxe4 {[%clk 0:03:00.4]}
4. dxe4 {[%clk 0:02:58.7]} 4... Qxd1+ {[%clk 0:03:01.1]} 5. Kxd1 {[%clk
0:02:59.6]} 5... Bg4 {[%clk 0:03:00.6]} 6. Be2 {[%clk 0:02:55.8]} 6... Nd7
{[%clk 0:03:00]} 7. Nfd2 {[%clk 0:02:54.6]} 7... Bxe2+ {[%clk 0:02:59.4]} 8.
Kxe2 {[%clk 0:02:55.5]} 8... Ngf6 {[%clk 0:02:59.4]} 9. f3 {[%clk 0:02:46]} 9...
g5 {[%clk 0:02:59.2]} 10. a4 {[%clk 0:02:32.9]} 10... Rg8 {[%clk 0:02:56.3]} 11.
Na3 {[%clk 0:01:49.9]} 11... a5 {[%clk 0:02:44.2]} 12. Nac4 {[%clk 0:01:45.9]}
12... e6 {[%clk 0:02:43.5]} 13. e5 {[%clk 0:01:37.8]} 13... Nd5 {[%clk
0:02:42.3]} 14. Ne4 {[%clk 0:01:37.8]} 14... Be7 {[%clk 0:02:07.6]} 15. b3
{[%clk 0:01:15.4]} 15... f5 {[%clk 0:01:32.8]} 16. exf6 {[%clk 0:01:13.9]} 16...
N7xf6 {[%clk 0:01:24.9]} 17. Ned6+ {[%clk 0:01:02]} 17... Kd7 {[%clk 0:01:09.9]}
18. Nxb7 {[%clk 0:00:51.7]} 18... Nf4+ {[%clk 0:00:55.1]} 19. Kf1 {[%clk
0:00:39.5]} 19... Kc7 {[%clk 0:00:44.1]} 20. Nbxa5 {[%clk 0:00:39.4]} 20... N4d5
{[%clk 0:00:32.5]} 21. Bd2 {[%clk 0:00:34]} 21... g4 {[%clk 0:00:31.2]} 22. Ne5
{[%clk 0:00:32.8]} 22... gxf3 {[%clk 0:00:29.8]} 23. gxf3 {[%clk 0:00:33.7]}
23... Bb4 {[%clk 0:00:19]} 24. Nac4 {[%clk 0:00:27.7]} 24... Raf8 {[%clk
0:00:15.4]} 25. Rg1 {[%clk 0:00:21.3]} 25... Nh5 {[%clk 0:00:10.8]} 26. Rxg8
{[%clk 0:00:20.7]} 26... Rxg8 {[%clk 0:00:11.7]} 27. Bxb4 {[%clk 0:00:16.7]}
27... Nxb4 {[%clk 0:00:11.8]} 28. c3 {[%clk 0:00:17.3]} 28... Nd5 {[%clk
0:00:10.7]} 29. Rc1 {[%clk 0:00:16.8]} 29... Nhf4 {[%clk 0:00:10.4]} 30. Ng4
{[%clk 0:00:08.5]} 30... h5 {[%clk 0:00:09.9]} 31. Nge3 {[%clk 0:00:09.1]} 31...
Nf6 {[%clk 0:00:08.5]} 32. a5 {[%clk 0:00:08.1]} 32... Nd3 {[%clk 0:00:08.5]}
33. Rd1 {[%clk 0:00:07.7]} 33... Nc5 {[%clk 0:00:09]} 34. b4 {[%clk 0:00:08]}
34... Ncd7 {[%clk 0:00:09]} 35. a6 {[%clk 0:00:07.7]} 35... Ra8 {[%clk
0:00:08.5]} 36. Ra1 {[%clk 0:00:08.1]} 36... Nd5 {[%clk 0:00:06.6]} 37. Nxd5+
{[%clk 0:00:07.8]} 37... exd5 {[%clk 0:00:07.5]} 38. Ne3 {[%clk 0:00:06.9]}
38... Ne5 {[%clk 0:00:08.1]} 39. Ke2 {[%clk 0:00:06.7]} 39... Rf8 {[%clk
0:00:07.8]} 40. a7 {[%clk 0:00:06.4]} 40... Kb7 {[%clk 0:00:08.2]} 41. Nf5
{[%clk 0:00:04.2]} 41... Ra8 {[%clk 0:00:09.1]} 42. Ng3 {[%clk 0:00:03]} 42...
h4 {[%clk 0:00:08.1]} 43. Nf5 {[%clk 0:00:03.6]} 43... Rxa7 {[%clk 0:00:08.6]}
44. Rxa7+ {[%clk 0:00:03.7]} 44... Kxa7 {[%clk 0:00:09.5]} 45. Nxh4 {[%clk
0:00:04.4]} 45... Kb6 {[%clk 0:00:10.4]} 46. Nf5 {[%clk 0:00:04.6]} 46... Kb5
{[%clk 0:00:11.3]} 47. Nd6+ {[%clk 0:00:04.6]} 47... Kb6 {[%clk 0:00:11.4]} 48.
h4 {[%clk 0:00:05.5]} 48... Kc7 {[%clk 0:00:12]} 49. Nf5 {[%clk 0:00:05.9]}
49... Nf7 {[%clk 0:00:12.4]} 50. Ke3 {[%clk 0:00:06.1]} 50... Kd7 {[%clk
0:00:13]} 51. Kf4 {[%clk 0:00:06.6]} 51... Ke6 {[%clk 0:00:13.7]} 52. Nd4+
{[%clk 0:00:07.2]} 52... Kd6 {[%clk 0:00:13.6]} 53. h5 {[%clk 0:00:07.7]} 53...
Ne5 {[%clk 0:00:14.2]} 54. h6 {[%clk 0:00:07.2]} 54... Ng6+ {[%clk 0:00:14.6]}
55. Kf5 {[%clk 0:00:07.2]} 55... Ne5 {[%clk 0:00:15.4]} 56. h7 {[%clk
0:00:07.4]} 1-0

[Event "Late-Titled-Tuesday-Blitz-June-18-2024"]
[Site "Chess.com"]
[Date "2024.06.18"]
[Round "1"]
[White "KarlEmilElmer"]
[Black "Slovak_fighter2000"]
[Result "0-1"]
[WhiteElo "2181"]
[BlackElo "2584"]
[TimeControl "180+1"]
[EndTime "14:08:05 PDT"]
[Termination "Slovak_fighter2000 won by checkmate"]

1. d4 {[%clk 0:02:57.1]} 1... Nf6 {[%clk 0:02:59.1]} 2. c4 {[%clk 0:02:54.3]}
2... c5 {[%clk 0:02:59.5]} 3. d5 {[%clk 0:02:54.1]} 3... b5 {[%clk 0:03:00]} 4.
cxb5 {[%clk 0:02:53]} 4... a6 {[%clk 0:03:00.6]} 5. e3 {[%clk 0:02:53]} 5... e6
{[%clk 0:03:00.4]} 6. Nc3 {[%clk 0:02:48.5]} 6... axb5 {[%clk 0:02:56.3]} 7.
dxe6 {[%clk 0:02:38.5]} 7... fxe6 {[%clk 0:02:54.5]} 8. Bxb5 {[%clk 0:02:39.1]}
8... Be7 {[%clk 0:02:54.2]} 9. Nf3 {[%clk 0:02:38.3]} 9... O-O {[%clk
0:02:54.1]} 10. O-O {[%clk 0:02:37.1]} 10... d5 {[%clk 0:02:50.1]} 11. b3 {[%clk
0:02:23.3]} 11... Bd7 {[%clk 0:02:42.2]} 12. Bb2 {[%clk 0:02:20.6]} 12... Nc6
{[%clk 0:02:29.8]} 13. Bxc6 {[%clk 0:01:34.1]} 13... Bxc6 {[%clk 0:02:30.4]} 14.
Ne5 {[%clk 0:01:35]} 14... Be8 {[%clk 0:02:19.8]} 15. Ne2 {[%clk 0:01:34.5]}
15... Bh5 {[%clk 0:02:12]} 16. Qc2 {[%clk 0:01:00.6]} 16... Bd6 {[%clk
0:02:02.8]} 17. Nf4 {[%clk 0:00:58.5]} 17... Qe8 {[%clk 0:01:53.6]} 18. Ned3
{[%clk 0:00:47.7]} 18... Rc8 {[%clk 0:01:45.8]} 19. h3 {[%clk 0:00:26.7]} 19...
c4 {[%clk 0:01:37.7]} 20. bxc4 {[%clk 0:00:26.6]} 20... Rxc4 {[%clk 0:01:38.6]}
21. Qb3 {[%clk 0:00:26]} 21... Ne4 {[%clk 0:01:32.2]} 22. Qb7 {[%clk 0:00:16.3]}
22... Bf7 {[%clk 0:01:10.3]} 23. Rac1 {[%clk 0:00:14.2]} 23... Qb8 {[%clk
0:01:04.6]} 24. Qxb8 {[%clk 0:00:13.8]} 24... Rxb8 {[%clk 0:01:05.5]} 25. Rxc4
{[%clk 0:00:14.4]} 25... dxc4 {[%clk 0:01:05.3]} 26. Be5 {[%clk 0:00:14.7]}
26... cxd3 {[%clk 0:01:04.7]} 27. Bxd6 {[%clk 0:00:14.4]} 27... Nxd6 {[%clk
0:01:05.6]} 28. Rd1 {[%clk 0:00:14.2]} 28... e5 {[%clk 0:00:55.3]} 29. Nxd3
{[%clk 0:00:14.4]} 29... Nc4 {[%clk 0:00:55.8]} 30. Rc1 {[%clk 0:00:13]} 30...
h6 {[%clk 0:00:54.8]} 31. e4 {[%clk 0:00:10.6]} 31... Ra8 {[%clk 0:00:54.7]} 32.
Nb4 {[%clk 0:00:09.5]} 32... Ra4 {[%clk 0:00:52.5]} 33. Nd5 {[%clk 0:00:08.9]}
33... Bxd5 {[%clk 0:00:50.9]} 34. exd5 {[%clk 0:00:09.8]} 34... Kf8 {[%clk
0:00:50.9]} 35. Re1 {[%clk 0:00:08.8]} 35... Ke7 {[%clk 0:00:51]} 36. f4 {[%clk
0:00:08.5]} 36... Kd6 {[%clk 0:00:50.8]} 37. fxe5+ {[%clk 0:00:09.1]} 37... Nxe5
{[%clk 0:00:51.7]} 38. Rd1 {[%clk 0:00:07.8]} 38... Rxa2 {[%clk 0:00:51.3]} 39.
Kh2 {[%clk 0:00:07.2]} 39... Ra5 {[%clk 0:00:51.1]} 40. Rb1 {[%clk 0:00:07.8]}
40... Rxd5 {[%clk 0:00:48.4]} 41. Rb7 {[%clk 0:00:08.3]} 41... Nd7 {[%clk
0:00:48.2]} 42. Ra7 {[%clk 0:00:07.6]} 42... Rc5 {[%clk 0:00:48]} 43. Ra6+
{[%clk 0:00:07.8]} 43... Rc6 {[%clk 0:00:48.2]} 44. Ra4 {[%clk 0:00:08.1]} 44...
Ke7 {[%clk 0:00:47.8]} 45. Rf4 {[%clk 0:00:07.5]} 45... Rf6 {[%clk 0:00:47.9]}
46. Rd4 {[%clk 0:00:06.9]} 46... Ne5 {[%clk 0:00:47.4]} 47. Rd5 {[%clk 0:00:07]}
47... Ng6 {[%clk 0:00:46.3]} 48. Ra5 {[%clk 0:00:07.5]} 48... Kf7 {[%clk
0:00:45.9]} 49. Ra7+ {[%clk 0:00:08.1]} 49... Kg8 {[%clk 0:00:46.2]} 50. Ra8+
{[%clk 0:00:08.6]} 50... Kh7 {[%clk 0:00:46.6]} 51. Ra7 {[%clk 0:00:09.3]} 51...
Nh4 {[%clk 0:00:46.5]} 52. Ra4 {[%clk 0:00:09.1]} 52... g5 {[%clk 0:00:46]} 53.
Ra5 {[%clk 0:00:08.1]} 53... Rf2 {[%clk 0:00:45.7]} 54. Ra7+ {[%clk 0:00:04.9]}
54... Kg6 {[%clk 0:00:45.4]} 55. Kh1 {[%clk 0:00:04.5]} 55... Nxg2 {[%clk
0:00:43]} 56. Ra6+ {[%clk 0:00:04.3]} 56... Kh5 {[%clk 0:00:42.9]} 57. Ra4
{[%clk 0:00:03.8]} 57... Nf4 {[%clk 0:00:42.4]} 58. Kg1 {[%clk 0:00:03.5]} 58...
Nxh3+ {[%clk 0:00:42.1]} 59. Kh1 {[%clk 0:00:04.1]} 59... Nf4 {[%clk 0:00:40.2]}
60. Ra3 {[%clk 0:00:03.1]} 60... g4 {[%clk 0:00:40]} 61. Rg3 {[%clk 0:00:02.2]}
61... Kh4 {[%clk 0:00:39.8]} 62. Ra3 {[%clk 0:00:02.3]} 62... g3 {[%clk
0:00:39.8]} 63. Rb3 {[%clk 0:00:01.4]} 63... Rf1# {[%clk 0:00:38.6]} 0-1

[Event "Late-Titled-Tuesday-Blitz-June-18-2024"]
[Site "Chess.com"]
[Date "2024.06.18"]
[Round "1"]
[White "unbreakablepawn35"]
[Black "rychessmaster1"]
[Result "1-0"]
[WhiteElo "2442"]
[BlackElo "2739"]
[TimeControl "180+1"]
[EndTime "14:08:06 PDT"]
[Termination "unbreakablepawn35 won by resignation"]

1. c4 {[%clk 0:03:00.9]} 1... e6 {[%clk 0:02:58.6]} 2. Nc3 {[%clk 0:03:00.6]}
2... d5 {[%clk 0:02:57.1]} 3. d4 {[%clk 0:03:00.9]} 3... c6 {[%clk 0:02:53.8]}
4. e4 {[%clk 0:03:00.5]} 4... dxe4 {[%clk 0:02:54.3]} 5. Nxe4 {[%clk 0:03:01.4]}
5... Bb4+ {[%clk 0:02:54.7]} 6. Nc3 {[%clk 0:03:00]} 6... e5 {[%clk 0:02:51.5]}
7. Be3 {[%clk 0:02:45.8]} 7... exd4 {[%clk 0:02:43.8]} 8. Qxd4 {[%clk
0:02:43.8]} 8... Qxd4 {[%clk 0:02:41.5]} 9. Bxd4 {[%clk 0:02:44.7]} 9... Nf6
{[%clk 0:02:41.9]} 10. O-O-O {[%clk 0:02:43]} 10... Be6 {[%clk 0:02:38]} 11. a3
{[%clk 0:02:32]} 11... Be7 {[%clk 0:02:36.9]} 12. Nf3 {[%clk 0:02:30.1]} 12...
h6 {[%clk 0:02:24.2]} 13. Be2 {[%clk 0:02:18.6]} 13... Nbd7 {[%clk 0:02:22.8]}
14. Rhe1 {[%clk 0:02:17.9]} 14... b6 {[%clk 0:02:17.3]} 15. Ne5 {[%clk
0:02:14.4]} 15... Nxe5 {[%clk 0:02:15.3]} 16. Bxe5 {[%clk 0:02:15.3]} 16... O-O
{[%clk 0:01:49.5]} 17. Bd6 {[%clk 0:02:00.6]} 17... Rfe8 {[%clk 0:01:47.8]} 18.
Bxe7 {[%clk 0:02:00.3]} 18... Rxe7 {[%clk 0:01:48.7]} 19. Bf3 {[%clk 0:01:59.9]}
19... Rc8 {[%clk 0:01:48.7]} 20. b3 {[%clk 0:01:51.7]} 20... Rd7 {[%clk
0:01:42.8]} 21. Rxd7 {[%clk 0:01:49.6]} 21... Nxd7 {[%clk 0:01:43.7]} 22. Ne4
{[%clk 0:01:44.3]} 22... Ne5 {[%clk 0:01:41.7]} 23. Be2 {[%clk 0:01:40.3]} 23...
Kf8 {[%clk 0:01:31.5]} 24. f4 {[%clk 0:01:33.2]} 24... Ng6 {[%clk 0:01:31.1]}
25. g3 {[%clk 0:01:31.4]} 25... Rd8 {[%clk 0:01:25.9]} 26. Bh5 {[%clk
0:01:14.2]} 26... Bf5 {[%clk 0:01:21.2]} 27. Bxg6 {[%clk 0:01:09.3]} 27... Bxg6
{[%clk 0:01:22.1]} 28. Nf2 {[%clk 0:01:04.1]} 28... h5 {[%clk 0:01:05.5]} 29.
Rd1 {[%clk 0:01:03.9]} 29... Rxd1+ {[%clk 0:00:58.4]} 30. Nxd1 {[%clk
0:00:53.6]} 30... Ke7 {[%clk 0:00:59]} 31. Kd2 {[%clk 0:00:53]} 31... Ke6 {[%clk
0:00:53.9]} 32. Ne3 {[%clk 0:00:53.2]} 32... Be4 {[%clk 0:00:54]} 33. Kc3 {[%clk
0:00:53]} 33... f6 {[%clk 0:00:49.2]} 34. Kd4 {[%clk 0:00:50.8]} 34... Bb1
{[%clk 0:00:49.5]} 35. b4 {[%clk 0:00:50]} 35... g5 {[%clk 0:00:48.5]} 36. c5
{[%clk 0:00:45.9]} 36... b5 {[%clk 0:00:33.2]} 37. fxg5 {[%clk 0:00:19.3]} 37...
fxg5 {[%clk 0:00:34.1]} 38. Nd1 {[%clk 0:00:19.4]} 38... Kf5 {[%clk 0:00:28.2]}
39. Ne3+ {[%clk 0:00:19.1]} 39... Ke6 {[%clk 0:00:28.3]} 40. h4 {[%clk
0:00:19.3]} 40... gxh4 {[%clk 0:00:27.4]} 41. gxh4 {[%clk 0:00:20.2]} 41... Bg6
{[%clk 0:00:24.6]} 42. Ng2 {[%clk 0:00:20.4]} 42... Kf5 {[%clk 0:00:24.7]} 43.
Ke3 {[%clk 0:00:13.9]} 43... Bf7 {[%clk 0:00:24.9]} 44. Nf4 {[%clk 0:00:12.8]}
44... Kg4 {[%clk 0:00:23.7]} 45. Nd3 {[%clk 0:00:12.8]} 45... Kxh4 {[%clk
0:00:22.8]} 46. Ne5 {[%clk 0:00:13.3]} 46... Bd5 {[%clk 0:00:23.1]} 47. Kf4
{[%clk 0:00:13.9]} 47... Kh3 {[%clk 0:00:23.3]} 48. Ng6 {[%clk 0:00:13.9]} 48...
Kg2 {[%clk 0:00:20.1]} 49. Kg5 {[%clk 0:00:13.4]} 49... Kf2 {[%clk 0:00:20.7]}
50. Ne7 {[%clk 0:00:12.8]} 50... Be4 {[%clk 0:00:20.6]} 51. Kxh5 {[%clk
0:00:12.9]} 51... Ke3 {[%clk 0:00:21.3]} 52. Kg5 {[%clk 0:00:13.4]} 52... Kd4
{[%clk 0:00:21.7]} 53. Kf6 {[%clk 0:00:14]} 53... Kc3 {[%clk 0:00:21.6]} 54. Ke5
{[%clk 0:00:14.7]} 54... Bg2 {[%clk 0:00:21.3]} 55. Kd6 {[%clk 0:00:14.9]} 55...
Kb3 {[%clk 0:00:21.9]} 56. Nxc6 {[%clk 0:00:15.3]} 56... Kxa3 {[%clk 0:00:22.5]}
57. Nxa7 {[%clk 0:00:15.5]} 57... Kxb4 {[%clk 0:00:23.1]} 58. c6 {[%clk
0:00:14.8]} 58... Kc4 {[%clk 0:00:22.7]} 59. c7 {[%clk 0:00:14]} 59... Bh3
{[%clk 0:00:21.7]} 60. Nc6 {[%clk 0:00:13.6]} 60... b4 {[%clk 0:00:21.3]} 61.
Ne5+ {[%clk 0:00:13.9]} 61... Kb3 {[%clk 0:00:18.3]} 62. Nd7 {[%clk 0:00:14.3]}
62... Bxd7 {[%clk 0:00:18.7]} 63. Kxd7 {[%clk 0:00:14.6]} 63... Kb2 {[%clk
0:00:19.4]} 64. c8=Q {[%clk 0:00:15.3]} 64... b3 {[%clk 0:00:20.3]} 65. Kd6
{[%clk 0:00:15.3]} 65... Kb1 {[%clk 0:00:19.3]} 66. Kd5 {[%clk 0:00:15.9]} 66...
b2 {[%clk 0:00:19.8]} 67. Kc4 {[%clk 0:00:16.4]} 67... Kc2 {[%clk 0:00:19.1]}
68. Kb4+ {[%clk 0:00:16.2]} 68... Kd2 {[%clk 0:00:19.7]} 69. Qc3+ {[%clk
0:00:15.5]} 1-0